Workbook

Sheet fortia
A1: Πρόσθεση φορτίων
F2: φορτία | V2: Γωνία μεταξύ -3Q και άξονα Χ
A3: Q | B3: 1 | D3: FQq | E3: =B3*B4 -> 0.5 | F3: 3Q | G3: =3*B3 -> 3 | I3: F3Qq | J3: =G3*G4 -> 1.5 | K3: Συνισταμένη F3Qq και F-3Qq
A4: q | B4: 0.5 | F4: q | G4: 0.5 | I4: γωνία -3Q με άξονα χ | J4: 47 | K4: =2*J3*COS(RADIANS(K6)) -> 1.196247207 | V4: =CONCATENATE("Γωνία = ",J4) -> Γωνία = 47
A5: s | B5: 1 | J5: =180-J4 -> 133 | K5: Γωνία με Qq
A6: θ | B6: 50 | C6: =RADIANS(B6) -> 0.872664626 | D6: theta | J6: FI | K6: =J5/2 -> 66.5
A7: γωνία μεταξύ άξονα | F7: F12 | G7: =2*E3*COS(C6) -> 0.6427876097 | H7: =G7+E3 -> 1.14278761
A8: και φορτίων (ίδια για κύκλο και ευθεία)
C9: 3 φορτία σε κύκλο | F9: =CONCATENATE("γωνία =",B6) -> γωνία =50 | K9: 3 φορτία σε ευθεία | P9: 1 θετικό 3Q και ένα αρνητικό -3Q
B11: Βέλος FQ1 | D11: Βέλος -FQ1 | F11: Βέλος κεντρικό | H11: Ολική δύναμη | J11: Βέλος FQ1 | L11: Βέλος -FQ1 | N11: Βέλος κεντρικό | P11: Ολική δύναμη | S11: διανυσμα f3Q | U11: διάνυσμα-f3Q | W11: Συνισταμένη των δύο
B12: x | C12: y | D12: x | E12: y | F12: x | G12: y | H12: x | I12: y | J12: x | K12: y | L12: x | M12: y | N12: x | O12: y | P12: x | Q12: y | S12: X | T12: Y | U12: Χ | V12: Υ | W12: Χ | X12: Υ
B13: =0 -> 0 | C13: 0 | D13: =0 -> 0 | E13: 0 | F13: 0 | G13: 0 | H13: =SUM(F13,D13,B13) -> 0 | I13: =SUM(G13,E13,C13) -> 0 | J13: =0 -> 0 | K13: 0 | L13: =0 -> 0 | M13: 0 | N13: 0 | O13: 0 | P13: =SUM(N13,L13,J13) -> 0 | Q13: =SUM(O13,M13,K13) -> 0 | S13: 0 | T13: 0 | U13: 0 | V13: 0 | W13: 0 | X13: 0
B14: =FQq*SIN(theta) -> 0.3830222216 | C14: =FQq*COS(theta) -> 0.3213938048 | D14: =-FQq*SIN(theta) -> -0.3830222216 | E14: =FQq*COS(theta) -> 0.3213938048 | F14: 0 | G14: =FQq -> 0.5 | H14: =SUM(F14,D14,B14) -> 0 | I14: =SUM(G14,E14,C14) -> 1.14278761 | J14: =FQq*SIN(theta)*COS(theta)^2 -> 0.1582555554 | K14: =FQq*COS(theta)*COS(theta)^2 -> 0.1327921782 | L14: =-FQq*SIN(theta)*COS(theta)^2 -> -0.1582555554 | M14: =FQq*COS(theta)*COS(theta)^2 -> 0.1327921782 | N14: 0 | O14: =FQq -> 0.5 | P14: =SUM(N14,L14,J14) -> 0 | Q14: =SUM(O14,M14,K14) -> 0.7655843563 | S14: 0 | T14: =F3Qq -> 1.5 | U14: =F3Qq*SIN(RADIANS(J4)) -> 1.097030552 | V14: =-F3Qq*COS(RADIANS(J4)) -> -1.02299754 | W14: =U14+S14 -> 1.097030552 | X14: =V14+T14 -> 0.4770024599
B15: =-C14/20+18/20*B14 -> 0.3286503092 | C15: =B14/10+18/20*C14 -> 0.3275566465 | D15: =-E14/20+18/20*D14 -> -0.3607896896 | E15: =D14/10+18/20*E14 -> 0.2509522022 | F15: =-G14/20+18/20*F14 -> -0.025 | G15: =F14/10+18/20*G14 -> 0.45 | H15: =-I14/60+18/20*H14 -> -0.01904646016 | I15: =H14/10+18/20*I14 -> 1.028508849 | J15: =J$14-Rx_3*COS(Fi_1)+Ry_3*SIN(Fi_1) -> 0.1354542125 | K15: =K$14-Rx_3*SIN(Fi_1)-Ry_3*COS(Fi_1) -> 0.07014600344 | L15: =L$14-Rx_4*COS(Fi_1)+Ry_4*SIN(Fi_1) -> -0.09260170519 | M15: =M$14-Rx_4*SIN(Fi_1)-Ry_4*COS(Fi_1) -> 0.121215633 | N15: =N14-N24 -> 0.05 | O15: =IF(C4>0,O14+O24,O14-O24) -> 0.4133974596 | P15: =P14-P24 -> 0.05 | Q15: =IF(E4>0,Q14+Q23,Q14-Q23) -> 0.6789818159 | S15: =S$14-Rx*COS(Fi_1)+Ry*SIN(Fi_1) -> 0.1 | T15: =T$14-Rx*SIN(Fi_1)-Ry*COS(Fi_1) -> 1.326794919 | U15: =U$14-Rx_1*COS(Fi_1)+Ry_1*SIN(Fi_1) -> 0.9021565395 | V15: =V$14-Rx_1*SIN(Fi_1)-Ry_1*COS(Fi_1) -> -0.9780073292 | W15: =W$14-Rx_2*COS(Fi_1)+Ry_2*SIN(Fi_1) -> 0.9780659951 | X15: =X$14-Rx_2*SIN(Fi_1)-Ry_2*COS(Fi_1) -> 0.3162310878
B16: =C14/20+18/20*B14 -> 0.3607896896 | C16: =-B14/20+18/20*C14 -> 0.2701033133 | D16: =E14/20+18/20*D14 -> -0.3286503092 | E16: =-D14/20+18/20*E14 -> 0.3084055354 | F16: =G14/20+18/20*F14 -> 0.025 | G16: =-F14/20+18/20*G14 -> 0.45 | H16: =I14/60+18/20*H14 -> 0.01904646016 | I16: =-H14/20+18/20*I14 -> 1.028508849 | J16: =J$14-Rx_3*COS(Fi_1)+Ry_3*SIN(-Fi_1) -> 0.09260170519 | K16: =K14-Rx_3*SIN(-Fi_1)-Ry_3*COS(-Fi_1) -> 0.121215633 | L16: =L$14-Rx_4*COS(Fi_1)+Ry_4*SIN(-Fi_1) -> -0.1354542125 | M16: =M14-Rx_4*SIN(-Fi_1)-Ry_4*COS(-Fi_1) -> 0.07014600344 | N16: =N14-N27 -> -0.05 | O16: =IF(C4>0,O14+O27,O14-O27) -> 0.4133974596 | P16: =P14-P27 -> -0.05 | Q16: =IF(E4>0,Q14+Q27,Q14-Q27) -> 0.6789818159 | S16: =S$14-Rx*COS(Fi_1)+Ry*SIN(-Fi_1) -> -0.1 | T16: =T14-Rx*SIN(-Fi_1)-Ry*COS(-Fi_1) -> 1.326794919 | U16: =U$14-Rx_1*COS(Fi_1)+Ry_1*SIN(-Fi_1) -> 1.038556211 | V16: =V14-Rx_1*SIN(-Fi_1)-Ry_1*COS(-Fi_1) -> -0.8317365889 | W16: =W$14-Rx_2*COS(Fi_1)+Ry_2*SIN(-Fi_1) -> 0.8983161813 | X16: =X14-Rx_2*SIN(-Fi_1)-Ry_2*COS(-Fi_1) -> 0.4996431027
B17: =B14 -> 0.3830222216 | C17: 0.3213938048 | D17: -0.3830222216 | E17: 0.3213938048 | F17: 0 | G17: 0.5 | H17: 0 | I17: 1.14278761 | J17: 0.1582555554 | K17: 0.1327921782 | L17: -0.1582555554 | M17: 0.1327921782 | N17: 0 | O17: 0.5 | P17: 0 | Q17: 0.7655843563 | S17: =S14 -> 0 | T17: 1.5 | U17: 1.097030552 | V17: -1.02299754 | W17: =W14 -> 1.097030552 | X17: 0.4770024599
R18: Fi_1 | S18: =RADIANS(30) -> 0.5235987756
B19: Βέλος -FQ1 | Q19: ΔΙΑΝΥΣΜΑΤΑ | S19: R_ | T19: 0.2
B20: x | C20: y | I20: Rx_3 | J20: =R_*SIN(theta)/3 -> 0.05106962954 | N20: =ABS(ATAN2(N14,O14)) -> 1.570796327 | P20: =ABS(ATAN2(P14,Q14)) -> 1.570796327 | Q20: diefth1 | R20: =PI()/2 -> 1.570796327 | S20: dR | T20: 0.1
B21: =0 -> 0 | C21: 0 | I21: Ry_3 | J21: =R_*COS(theta)/3 -> 0.04285250731 | N21: =RADIANS(30) -> 0.5235987756 | P21: =RADIANS(30) -> 0.5235987756 | R21: βέλος σε υ | S21: Rx | T21: =R_*COS(R20) -> 1.225148455e-17
B22: =-FQq*SIN(theta) -> -0.3830222216 | C22: =FQq*COS(theta) -> 0.3213938048 | I22: Rx_4 | J22: =-R_*SIN(theta)/3 -> -0.05106962954 | N22: =N20+N21 -> 2.094395102 | P22: =P20+P21 -> 2.094395102 | S22: Ry | T22: =R_*SIN(diefth1) -> 0.2
I23: Ry_4 | J23: =R_*COS(theta)/3 -> 0.04285250731 | N23: =SQRT(N14^2+O14^2) -> 0.5 | P23: =SQRT(P14^2+Q14^2) -> 0.7655843563 | Q23: =0.1*SIN(P22) -> 0.08660254038 | R23: βέλος της -3Q | S23: Rx_1 | T23: =R_*COS(diefth2) -> 0.1462707403
M24: =0.1*SIN(L22) -> 0 | N24: =0.1*COS(N22) -> -0.05 | O24: =0.1*SIN(N22) -> 0.08660254038 | P24: =0.1*COS(P22) -> -0.05 | Q24: diefth2 | R24: =ATAN2(U14,V14) -> -0.7504915784 | S24: Ry_1 | T24: =R_*SIN(diefth2) -> -0.136399672
N25: =N20 -> 1.570796327 | P25: =P20 -> 1.570796327 | R25: βέλος συνισταμένης | S25: Rx_2 | T25: =R_*COS(diefth3) -> 0.1834120149
N26: =N20-N21 -> 1.047197551 | P26: =P20-P21 -> 1.047197551 | Q26: diefth3 | R26: =ATAN2(W14,X14) -> 0.4101523742 | S26: Ry_2 | T26: =R_*SIN(diefth3) -> 0.07974981379
M27: =0.1*SIN(L26) -> 0 | N27: =0.1*COS(N26) -> 0.05 | O27: =0.1*SIN(N26) -> 0.08660254038 | P27: =0.1*COS(P26) -> 0.05 | Q27: =0.1*SIN(P26) -> 0.08660254038
A34: Σχέδιοφορτίων σε κύκλο | I34: Σχέδιο φορτίων που βρίσκονται σε ευθεία
A35: χ | B35: ψ | I35: χ | J35: ψ
A36: 0 | B36: =-s -> -1 | I36: 0 | J36: =-s -> -1
A37: =-s*SIN(theta) -> -0.7660444431 | B37: =-s*COS(theta) -> -0.6427876097 | I37: =-s/TAN(theta) -> -0.8390996312 | J37: =-s -> -1
A38: =s*SIN(theta) -> 0.7660444431 | B38: =-s*COS(theta) -> -0.6427876097 | I38: =s/TAN(theta) -> 0.8390996312 | J38: =-s -> -1

Sheet polla fortia
A1: 10 fortia | B1: gonia | C1: 40 | D1: rr | E1: 0.1 | F1: μήκος πλευρών βέλους | O1: =O10 -> σύγκριση της δύναμης που ασκεί το αρνητικό φορτίο - 21 Q με τη συνισταμένη 21 φορτίων Q τοποθετημένα σε τόξο κύκλου με γωνία =2 X40° και της συνισταμένης των δυνάμεων των μικρών φορτίων
A2: Q | B2: 1 | C2: qmikro | D2: 0.5
A3: Fx | B3: Fy | C3: 1 | E3: 2 | G3: 3 | I3: 4 | K3: 5 | M3: 6 | O3: 7 | Q3: 8 | S3: 9 | U3: 10 | W3: 11 | Y3: 12 | AA3: 13 | AC3: 14 | AE3: 15 | AG3: 16 | AI3: 17 | AK3: 18 | AM3: 19 | AO3: 20
A4: 0 | B4: 0 | C4: 0 | D4: 0 | E4: 0 | F4: 0 | G4: 0 | H4: 0 | I4: 0 | J4: 0 | K4: 0 | L4: 0 | M4: 0 | N4: 0 | O4: 0 | P4: 0 | Q4: 0 | R4: 0 | S4: 0 | T4: 0 | U4: 0 | V4: 0 | W4: 0 | X4: 0 | Y4: 0 | Z4: 0 | AA4: 0 | AB4: 0 | AC4: 0 | AD4: 0 | AE4: 0 | AF4: 0 | AG4: 0 | AH4: 0 | AI4: 0 | AJ4: 0 | AK4: 0 | AL4: 0 | AM4: 0 | AN4: 0 | AO4: 0 | AP4: 0
A5: =-Q*qmikro*COS(RADIANS(gonia))/s^2 -> -0.3830222216 | B5: =-Q*qmikro*SIN(RADIANS(gonia))/s^2 -> -0.3213938048 | C5: =-Q*qmikro*COS(RADIANS(gonia-gonia*C3/10))/s^2 -> -0.4045084972 | D5: =-Q*qmikro*SIN(RADIANS(gonia-gonia*C3/10))/s^2 -> -0.2938926261 | E5: =-Q*qmikro*COS(RADIANS(gonia-gonia*E3/10))/s^2 -> -0.4240240481 | F5: =-Q*qmikro*SIN(RADIANS(gonia-gonia*E3/10))/s^2 -> -0.2649596321 | G5: =-Q*qmikro*COS(RADIANS(gonia-gonia*G3/10))/s^2 -> -0.4414737964 | H5: =-Q*qmikro*SIN(RADIANS(gonia-gonia*G3/10))/s^2 -> -0.2347357814 | I5: =-Q*qmikro*COS(RADIANS(gonia-gonia*I3/10))/s^2 -> -0.4567727288 | J5: =-Q*qmikro*SIN(RADIANS(gonia-gonia*I3/10))/s^2 -> -0.2033683215 | K5: =-Q*qmikro*COS(RADIANS(gonia-gonia*K3/10))/s^2 -> -0.4698463104 | L5: =-Q*qmikro*SIN(RADIANS(gonia-gonia*K3/10))/s^2 -> -0.1710100717 | M5: =-Q*qmikro*COS(RADIANS(gonia-gonia*M3/10))/s^2 -> -0.480630848 | N5: =-Q*qmikro*SIN(RADIANS(gonia-gonia*M3/10))/s^2 -> -0.1378186779 | O5: =-Q*qmikro*COS(RADIANS(gonia-gonia*O3/10))/s^2 -> -0.4890738004 | P5: =-Q*qmikro*SIN(RADIANS(gonia-gonia*O3/10))/s^2 -> -0.1039558454 | Q5: =-Q*qmikro*COS(RADIANS(gonia-gonia*Q3/10))/s^2 -> -0.4951340344 | R5: =-Q*qmikro*SIN(RADIANS(gonia-gonia*Q3/10))/s^2 -> -0.06958655048 | S5: =-Q*qmikro*COS(RADIANS(gonia-gonia*S3/10))/s^2 -> -0.4987820251 | T5: =-Q*qmikro*SIN(RADIANS(gonia-gonia*S3/10))/s^2 -> -0.03487823687 | U5: =-Q*qmikro*COS(RADIANS(gonia-gonia*U3/10))/s^2 -> -0.5 | V5: =-Q*qmikro*SIN(RADIANS(gonia-gonia*U3/10))/s^2 -> 0 | W5: =-Q*qmikro*COS(RADIANS(gonia-gonia*W3/10))/s^2 -> -0.4987820251 | X5: =-Q*qmikro*SIN(RADIANS(gonia-gonia*W3/10))/s^2 -> 0.03487823687 | Y5: =-Q*qmikro*COS(RADIANS(gonia-gonia*Y3/10))/s^2 -> -0.4951340344 | Z5: =-Q*qmikro*SIN(RADIANS(gonia-gonia*Y3/10))/s^2 -> 0.06958655048 | AA5: =-Q*qmikro*COS(RADIANS(gonia-gonia*AA3/10))/s^2 -> -0.4890738004 | AB5: =-Q*qmikro*SIN(RADIANS(gonia-gonia*AA3/10))/s^2 -> 0.1039558454 | AC5: =-Q*qmikro*COS(RADIANS(gonia-gonia*AC3/10))/s^2 -> -0.480630848 | AD5: =-Q*qmikro*SIN(RADIANS(gonia-gonia*AC3/10))/s^2 -> 0.1378186779 | AE5: =-Q*qmikro*COS(RADIANS(gonia-gonia*AE3/10))/s^2 -> -0.4698463104 | AF5: =-Q*qmikro*SIN(RADIANS(gonia-gonia*AE3/10))/s^2 -> 0.1710100717 | AG5: =-Q*qmikro*COS(RADIANS(gonia-gonia*AG3/10))/s^2 -> -0.4567727288 | AH5: =-Q*qmikro*SIN(RADIANS(gonia-gonia*AG3/10))/s^2 -> 0.2033683215 | AI5: =-Q*qmikro*COS(RADIANS(gonia-gonia*AI3/10))/s^2 -> -0.4414737964 | AJ5: =-Q*qmikro*SIN(RADIANS(gonia-gonia*AI3/10))/s^2 -> 0.2347357814 | AK5: =-Q*qmikro*COS(RADIANS(gonia-gonia*AK3/10))/s^2 -> -0.4240240481 | AL5: =-Q*qmikro*SIN(RADIANS(gonia-gonia*AK3/10))/s^2 -> 0.2649596321 | AM5: =-Q*qmikro*COS(RADIANS(gonia-gonia*AM3/10))/s^2 -> -0.4045084972 | AN5: =-Q*qmikro*SIN(RADIANS(gonia-gonia*AM3/10))/s^2 -> 0.2938926261 | AO5: =-Q*qmikro*COS(RADIANS(gonia-gonia*AO3/10))/s^2 -> -0.3830222216 | AP5: =-Q*qmikro*SIN(RADIANS(gonia-gonia*AO3/10))/s^2 -> 0.3213938048
A6: =velosleftx(A4,B4,A5,B5,$E$1) -> -0.3488202072 | B6: =veloslefty(A4,B4,A5,B5,$E$1) -> -0.2274245428 | C6: =velosleftx(C4,D4,C5,D5,$E$1) -> -0.3638348329 | D6: =veloslefty(C4,D4,C5,D5,$E$1) -> -0.2025380804 | E6: =velosleftx(E4,F4,E5,F5,$E$1) -> -0.3770768918 | F6: =veloslefty(E4,F4,E5,F5,$E$1) -> -0.1766648728 | G6: =velosleftx(G4,H4,G5,H5,$E$1) -> -0.38848187 | H6: =veloslefty(G4,H4,G5,H5,$E$1) -> -0.1499309718 | I6: =velosleftx(I4,J4,I5,J5,$E$1) -> -0.3979942036 | J6: =veloslefty(I4,J4,I5,J5,$E$1) -> -0.1224666221 | K6: =velosleftx(K4,L4,K5,L5,$E$1) -> -0.4055675494 | L6: =veloslefty(K4,L4,K5,L5,$E$1) -> -0.09440562735 | M6: =velosleftx(M4,N4,M5,N5,$E$1) -> -0.4111650109 | N6: =veloslefty(M4,N4,M5,N5,$E$1) -> -0.06588469787 | O6: =velosleftx(O4,P4,O5,P5,$E$1) -> -0.4147593178 | P6: =veloslefty(O4,P4,O5,P5,$E$1) -> -0.03704278477 | Q6: =velosleftx(Q4,R4,Q5,R5,$E$1) -> -0.416332959 | R6: =veloslefty(Q4,R4,Q5,R5,$E$1) -> -0.008020402947 | S6: =velosleftx(S4,T4,S5,T5,$E$1) -> -0.4158782679 | T6: =veloslefty(S4,T4,S5,T5,$E$1) -> 0.02104105348 | U6: =velosleftx(U4,V4,U5,V5,$E$1) -> -0.4133974596 | V6: =veloslefty(U4,V4,U5,V5,$E$1) -> 0.05 | W6: =velosleftx(W4,X4,W5,X5,$E$1) -> -0.4089026205 | X6: =veloslefty(W4,X4,W5,X5,$E$1) -> 0.07871535155 | Y6: =velosleftx(Y4,Z4,Y5,Z5,$E$1) -> -0.4024156489 | Z6: =veloslefty(Y4,Z4,Y5,Z5,$E$1) -> 0.1070472098 | AA6: =velosleftx(AA4,AB4,AA5,AB5,$E$1) -> -0.3939681487 | AB6: =veloslefty(AA4,AB4,AA5,AB5,$E$1) -> 0.1348575448 | AC6: =velosleftx(AC4,AD4,AC5,AD5,$E$1) -> -0.3836012753 | AD6: =veloslefty(AC4,AD4,AC5,AD5,$E$1) -> 0.1620108675 | AE6: =velosleftx(AE4,AF4,AE5,AF5,$E$1) -> -0.3713655351 | AF6: =veloslefty(AE4,AF4,AE5,AF5,$E$1) -> 0.1883748894 | AG6: =velosleftx(AG4,AH4,AG5,AH5,$E$1) -> -0.3573205393 | AH6: =veloslefty(AG4,AH4,AG5,AH5,$E$1) -> 0.2138211679 | AI6: =velosleftx(AI4,AJ4,AI5,AJ5,$E$1) -> -0.3415347137 | AJ6: =veloslefty(AI4,AJ4,AI5,AJ5,$E$1) -> 0.2382257311 | AK6: =velosleftx(AK4,AL4,AK5,AL5,$E$1) -> -0.3240849654 | AL6: =veloslefty(AK4,AL4,AK5,AL5,$E$1) -> 0.2614696824 | AM6: =velosleftx(AM4,AN4,AM5,AN5,$E$1) -> -0.3050563077 | AN6: =veloslefty(AM4,AN4,AM5,AN5,$E$1) -> 0.2834397798 | AO6: =velosleftx(AO4,AP4,AO5,AP5,$E$1) -> -0.2845414463 | AP6: =veloslefty(AO4,AP4,AO5,AP5,$E$1) -> 0.3040289871
A7: =velosrightx(A4,B4,A5,B5,$E$1) -> -0.2845414463 | B7: =velosrighty(A4,B4,A5,B5,$E$1) -> -0.3040289871 | C7: =velosrightx(C4,D4,C5,D5,$E$1) -> -0.3050563077 | D7: =velosrighty(C4,D4,C5,D5,$E$1) -> -0.2834397798 | E7: =velosrightx(E4,F4,E5,F5,$E$1) -> -0.3240849654 | F7: =velosrighty(E4,F4,E5,F5,$E$1) -> -0.2614696824 | G7: =velosrightx(G4,H4,G5,H5,$E$1) -> -0.3415347137 | H7: =velosrighty(G4,H4,G5,H5,$E$1) -> -0.2382257311 | I7: =velosrightx(I4,J4,I5,J5,$E$1) -> -0.3573205393 | J7: =velosrighty(I4,J4,I5,J5,$E$1) -> -0.2138211679 | K7: =velosrightx(K4,L4,K5,L5,$E$1) -> -0.3713655351 | L7: =velosrighty(K4,L4,K5,L5,$E$1) -> -0.1883748894 | M7: =velosrightx(M4,N4,M5,N5,$E$1) -> -0.3836012753 | N7: =velosrighty(M4,N4,M5,N5,$E$1) -> -0.1620108675 | O7: =velosrightx(O4,P4,O5,P5,$E$1) -> -0.3939681487 | P7: =velosrighty(O4,P4,O5,P5,$E$1) -> -0.1348575448 | Q7: =velosrightx(Q4,R4,Q5,R5,$E$1) -> -0.4024156489 | R7: =velosrighty(Q4,R4,Q5,R5,$E$1) -> -0.1070472098 | S7: =velosrightx(S4,T4,S5,T5,$E$1) -> -0.4089026205 | T7: =velosrighty(S4,T4,S5,T5,$E$1) -> -0.07871535155 | U7: =velosrightx(U4,V4,U5,V5,$E$1) -> -0.4133974596 | V7: =velosrighty(U4,V4,U5,V5,$E$1) -> -0.05 | W7: =velosrightx(W4,X4,W5,X5,$E$1) -> -0.4158782679 | X7: =velosrighty(W4,X4,W5,X5,$E$1) -> -0.02104105348 | Y7: =velosrightx(Y4,Z4,Y5,Z5,$E$1) -> -0.416332959 | Z7: =velosrighty(Y4,Z4,Y5,Z5,$E$1) -> 0.008020402947 | AA7: =velosrightx(AA4,AB4,AA5,AB5,$E$1) -> -0.4147593178 | AB7: =velosrighty(AA4,AB4,AA5,AB5,$E$1) -> 0.03704278477 | AC7: =velosrightx(AC4,AD4,AC5,AD5,$E$1) -> -0.4111650109 | AD7: =velosrighty(AC4,AD4,AC5,AD5,$E$1) -> 0.06588469787 | AE7: =velosrightx(AE4,AF4,AE5,AF5,$E$1) -> -0.4055675494 | AF7: =velosrighty(AE4,AF4,AE5,AF5,$E$1) -> 0.09440562735 | AG7: =velosrightx(AG4,AH4,AG5,AH5,$E$1) -> -0.3979942036 | AH7: =velosrighty(AG4,AH4,AG5,AH5,$E$1) -> 0.1224666221 | AI7: =velosrightx(AI4,AJ4,AI5,AJ5,$E$1) -> -0.38848187 | AJ7: =velosrighty(AI4,AJ4,AI5,AJ5,$E$1) -> 0.1499309718 | AK7: =velosrightx(AK4,AL4,AK5,AL5,$E$1) -> -0.3770768918 | AL7: =velosrighty(AK4,AL4,AK5,AL5,$E$1) -> 0.1766648728 | AM7: =velosrightx(AM4,AN4,AM5,AN5,$E$1) -> -0.3638348329 | AN7: =velosrighty(AM4,AN4,AM5,AN5,$E$1) -> 0.2025380804 | AO7: =velosrightx(AO4,AP4,AO5,AP5,$E$1) -> -0.3488202072 | AP7: =velosrighty(AO4,AP4,AO5,AP5,$E$1) -> 0.2274245428
A8: =A5 -> -0.3830222216 | B8: -0.3213938048 | C8: -0.4045084972 | D8: -0.2938926261 | E8: -0.4240240481 | F8: -0.2649596321 | G8: -0.4414737964 | H8: -0.2347357814 | I8: -0.4567727288 | J8: -0.2033683215 | K8: -0.4698463104 | L8: -0.1710100717 | M8: -0.480630848 | N8: -0.1378186779 | O8: -0.4890738004 | P8: -0.1039558454 | Q8: -0.4951340344 | R8: -0.06958655048 | S8: -0.4987820251 | T8: -0.03487823687 | U8: -0.5 | V8: 0 | W8: -0.4987820251 | X8: 0.03487823687 | Y8: -0.4951340344 | Z8: 0.06958655048 | AA8: -0.4890738004 | AB8: 0.1039558454 | AC8: -0.480630848 | AD8: 0.1378186779 | AE8: -0.4698463104 | AF8: 0.1710100717 | AG8: -0.4567727288 | AH8: 0.2033683215 | AI8: -0.4414737964 | AJ8: 0.2347357814 | AK8: -0.4240240481 | AL8: 0.2649596321 | AM8: -0.4045084972 | AN8: 0.2938926261 | AO8: -0.3830222216 | AP8: 0.3213938048
O10: =O13 -> σύγκριση της δύναμης που ασκεί το αρνητικό φορτίο - 21 Q με τη συνισταμένη 21 φορτίων Q τοποθετημένα σε τόξο κύκλου με γωνία =2 X40° και της συνισταμένης των δυνάμεων των μικρών φορτίων
A12: Fx | B12: Fy
A13: 0 | B13: 0 | C13: 0 | O13: =CONCATENATE("σύγκριση της δύναμης που ασκεί το αρνητικό φορτίο - 21 Q με τη συνισταμένη 21 φορτίων Q τοποθετημένα σε τόξο κύκλου με γωνία =2 X",gonia,"° και της συνισταμένης των δυνάμεων των μικρών φορτίων") -> σύγκριση της δύναμης που ασκεί το αρνητικό φορτίο - 21 Q με τη συνισταμένη 21 φορτίων Q τοποθετημένα σε τόξο κύκλου με γωνία =2 X40° και της συνισταμένης των δυνάμεων των μικρών φορτίων
A14: =-Q*qmikro*COS(RADIANS(gonia-gonia*'polla fortia'!C13/10))/s^2 -> -0.3830222216 | B14: =-Q*qmikro*SIN(RADIANS(gonia-gonia*C13/10))/s^2 -> -0.3213938048 | C14: =C13+0.2 -> 0.2
A15: =velosleftx(A13,B13,A14,B14,$E$1) -> -0.3488202072 | B15: =veloslefty(A13,B13,A14,B14,$E$1) -> -0.2274245428 | C15: =C14+0.2 -> 0.4
A16: =velosrightx(A13,B13,A14,B14,$E$1) -> -0.2845414463 | B16: =velosrighty(A13,B13,A14,B14,$E$1) -> -0.3040289871 | C16: 0.6
A17: =A14 -> -0.3830222216 | B17: =B14 -> -0.3213938048 | C17: 0.8
A18: =A17-Q*qmikro*COS(RADIANS(gonia-C18*gonia/10))/s^2 -> -0.7875307187 | B18: =B17-Q*qmikro*SIN(RADIANS(gonia-C18*gonia/10))/s^2 -> -0.615286431 | C18: 1
A19: =velosleftx(A17,B17,A18,B18,$E$1) -> -0.7468570544 | B19: =veloslefty(A17,B17,A18,B18,$E$1) -> -0.5239318852 | C19: =C18+0.25 -> 1.25
A20: =velosrightx(A17,B17,A18,B18,$E$1) -> -0.6880785292 | B20: =velosrighty(A17,B17,A18,B18,$E$1) -> -0.6048335847 | C20: =C19+0.25 -> 1.5 | O20: 0 | P20: 0
A21: =A18 -> -0.7875307187 | B21: =B18 -> -0.615286431 | C21: 1.75 | O21: =-21*Q*qmikro/s^2 -> -10.5 | P21: 0
A22: =A21-Q*qmikro*COS(RADIANS(gonia-C22*gonia/10))/s^2 -> -1.211554767 | B22: =B21-Q*qmikro*SIN(RADIANS(gonia-C22*gonia/10))/s^2 -> -0.8802460631 | C22: 2 | O22: =velosleftx(O20,P20,O21,P21,0.4) -> -10.15358984 | P22: =veloslefty(O20,P20,O21,P21,0.4) -> -0.2
A23: =velosleftx(A21,B21,A22,B22,$E$1) -> -1.164607611 | B23: =veloslefty(A21,B21,A22,B22,$E$1) -> -0.7919513038 | C23: 2.25 | O23: =velosrightx(O20,P20,O21,P21,0.4) -> -10.15358984 | P23: =velosrighty(O20,P20,O21,P21,0.4) -> 0.2
A24: =velosrightx(A21,B21,A22,B22,$E$1) -> -1.111615684 | B24: =velosrighty(A21,B21,A22,B22,$E$1) -> -0.8767561134 | C24: 2.5 | O24: =O21 -> -10.5 | P24: =P21 -> 0
A25: =A22 -> -1.211554767 | B25: =B22 -> -0.8802460631 | C25: 2.75 | P25: =P21 -> 0
A26: =A25-Q*qmikro*COS(RADIANS(gonia-C26*gonia/10))/s^2 -> -1.653028563 | B26: =B25-Q*qmikro*SIN(RADIANS(gonia-C26*gonia/10))/s^2 -> -1.114981844 | C26: 3 | H26: θέσεις φορτίων
A27: =velosleftx(A25,B25,A26,B26,$E$1) -> -1.600036637 | B27: =veloslefty(A25,B25,A26,B26,$E$1) -> -1.030177035 | C27: 3.25 | H27: χ | I27: υ
A28: =velosrightx(A25,B25,A26,B26,$E$1) -> -1.553089481 | B28: =velosrighty(A25,B25,A26,B26,$E$1) -> -1.118471794 | C28: 3.5 | G28: 0 | H28: =s*COS(RADIANS(gonia)) -> 0.7660444431 | I28: =s*SIN(RADIANS(gonia)) -> 0.6427876097
A29: =A26 -> -1.653028563 | B29: =B26 -> -1.114981844 | C29: 3.75 | G29: =G28+1 -> 1 | H29: =s*COS(RADIANS(gonia-G29*gonia/10)) -> 0.8090169944 | I29: =s*SIN(RADIANS(gonia-G29*gonia/10)) -> 0.5877852523
A30: =A29-Q*qmikro*COS(RADIANS(gonia-C30*gonia/10))/s^2 -> -2.109801292 | B30: =B29-Q*qmikro*SIN(RADIANS(gonia-C30*gonia/10))/s^2 -> -1.318350166 | C30: 4 | G30: =G29+1 -> 2 | H30: 0.8480480962 | I30: 0.5299192642
A31: =velosleftx(A29,B29,A30,B30,$E$1) -> -2.051022767 | B31: =veloslefty(A29,B29,A30,B30,$E$1) -> -1.237448467 | C31: 4.25 | G31: 3 | H31: 0.8829475929 | I31: 0.4694715628
A32: =velosrightx(A29,B29,A30,B30,$E$1) -> -2.010349103 | B32: =velosrighty(A29,B29,A30,B30,$E$1) -> -1.328803012 | C32: 4.5 | G32: 4 | H32: 0.9135454576 | I32: 0.4067366431
A33: =A30 -> -2.109801292 | B33: =B30 -> -1.318350166 | C33: 4.75 | G33: 5 | H33: 0.9396926208 | I33: 0.3420201433
A34: =A33-Q*qmikro*COS(RADIANS(gonia-C34*gonia/10))/s^2 -> -2.579647602 | B34: =B33-Q*qmikro*SIN(RADIANS(gonia-C34*gonia/10))/s^2 -> -1.489360238 | C34: 5 | G34: 6 | H34: 0.9612616959 | I34: 0.2756373558
A35: =velosleftx(A33,B33,A34,B34,$E$1) -> -2.515368842 | B35: =veloslefty(A33,B33,A34,B34,$E$1) -> -1.412755793 | C35: 5.25 | G35: 7 | H35: 0.9781476007 | I35: 0.2079116908
A36: =velosrightx(A33,B33,A34,B34,$E$1) -> -2.481166827 | B36: =velosrighty(A33,B33,A34,B34,$E$1) -> -1.506725055 | C36: 5.5 | G36: 8 | H36: 0.9902680687 | I36: 0.139173101
A37: =A34 -> -2.579647602 | B37: =B34 -> -1.489360238 | C37: 5.75 | G37: 9 | H37: 0.9975640503 | I37: 0.06975647374
A38: =A37-Q*qmikro*COS(RADIANS(gonia-C38*gonia/10))/s^2 -> -3.06027845 | B38: =B37-Q*qmikro*SIN(RADIANS(gonia-C38*gonia/10))/s^2 -> -1.627178916 | C38: 6 | G38: 10 | H38: 1 | I38: 0
A39: =velosleftx(A37,B37,A38,B38,$E$1) -> -2.990812613 | B39: =veloslefty(A37,B37,A38,B38,$E$1) -> -1.555244936 | C39: 6.25 | G39: 11 | H39: 0.9975640503 | I39: -0.06975647374
A40: =velosrightx(A37,B37,A38,B38,$E$1) -> -2.963248878 | B40: =velosrighty(A37,B37,A38,B38,$E$1) -> -1.651371105 | C40: 6.5 | G40: 12 | H40: 0.9902680687 | I40: -0.139173101
A41: =A38 -> -3.06027845 | B41: =B38 -> -1.627178916 | C41: 6.75 | G41: 13 | H41: 0.9781476007 | I41: -0.2079116908
A42: =A41-Q*qmikro*COS(RADIANS(gonia-C42*gonia/10))/s^2 -> -3.549352251 | B42: =B41-Q*qmikro*SIN(RADIANS(gonia-C42*gonia/10))/s^2 -> -1.731134761 | C42: 7 | G42: 14 | H42: 0.9612616959 | I42: -0.2756373558
A43: =velosleftx(A41,B41,A42,B42,$E$1) -> -3.475037768 | B43: =veloslefty(A41,B41,A42,B42,$E$1) -> -1.6642217 | C43: 7.25 | G43: 15 | H43: 0.9396926208 | I43: -0.3420201433
A44: =velosrightx(A41,B41,A42,B42,$E$1) -> -3.454246599 | B44: =velosrighty(A41,B41,A42,B42,$E$1) -> -1.76203646 | C44: 7.5 | G44: 16 | H44: 0.9135454576 | I44: -0.4067366431
A45: =A42 -> -3.549352251 | B45: =B42 -> -1.731134761 | C45: 7.75 | G45: 17 | H45: 0.8829475929 | I45: -0.4694715628
A46: =A45-Q*qmikro*COS(RADIANS(gonia-C46*gonia/10))/s^2 -> -4.044486285 | B46: =B45-Q*qmikro*SIN(RADIANS(gonia-C46*gonia/10))/s^2 -> -1.800721311 | C46: 8 | G46: 18 | H46: 0.8480480962 | I46: -0.5299192642
A47: =velosleftx(A45,B45,A46,B46,$E$1) -> -3.96568521 | B47: =veloslefty(A45,B45,A46,B46,$E$1) -> -1.739155164 | C47: 8.25 | G47: 19 | H47: 0.8090169944 | I47: -0.5877852523
A48: =velosrightx(A45,B45,A46,B46,$E$1) -> -3.9517679 | B48: =velosrighty(A45,B45,A46,B46,$E$1) -> -1.838181971 | C48: 8.5 | G48: 20 | H48: 0.7660444431 | I48: -0.6427876097
A49: =A46 -> -4.044486285 | B49: =B46 -> -1.800721311 | C49: 8.75
A50: =A49-Q*qmikro*COS(RADIANS(gonia-C50*gonia/10))/s^2 -> -4.54326831 | B50: =B49-Q*qmikro*SIN(RADIANS(gonia-C50*gonia/10))/s^2 -> -1.835599548 | C50: 9
A51: =velosleftx(A49,B49,A50,B50,$E$1) -> -4.460364553 | B51: =veloslefty(A49,B49,A50,B50,$E$1) -> -1.779680258 | C51: 9.25
A52: =velosrightx(A49,B49,A50,B50,$E$1) -> -4.453388906 | B52: =velosrighty(A49,B49,A50,B50,$E$1) -> -1.879436663 | C52: 9.5
A53: =A50 -> -4.54326831 | B53: =B50 -> -1.835599548 | C53: 9.75
A54: =A53-Q*qmikro*COS(RADIANS(gonia-C54*gonia/10))/s^2 -> -5.04326831 | B54: =B53-Q*qmikro*SIN(RADIANS(gonia-C54*gonia/10))/s^2 -> -1.835599548 | C54: 10
A55: =velosleftx(A53,B53,A54,B54,$E$1) -> -4.95666577 | B55: =veloslefty(A53,B53,A54,B54,$E$1) -> -1.785599548 | C55: 10.25
A56: =velosrightx(A53,B53,A54,B54,$E$1) -> -4.95666577 | B56: =velosrighty(A53,B53,A54,B54,$E$1) -> -1.885599548 | C56: 10.5
A57: =A54 -> -5.04326831 | B57: =B54 -> -1.835599548 | C57: 10.75
A58: =A57-Q*qmikro*COS(RADIANS(gonia-C58*gonia/10))/s^2 -> -5.542050335 | B58: =B57-Q*qmikro*SIN(RADIANS(gonia-C58*gonia/10))/s^2 -> -1.800721311 | C58: 11
A59: =velosleftx(A57,B57,A58,B58,$E$1) -> -5.452170931 | B59: =veloslefty(A57,B57,A58,B58,$E$1) -> -1.756884197 | C59: 11.25
A60: =velosrightx(A57,B57,A58,B58,$E$1) -> -5.459146578 | B60: =velosrighty(A57,B57,A58,B58,$E$1) -> -1.856640602 | C60: 11.5
A61: =A58 -> -5.542050335 | B61: =B58 -> -1.800721311 | C61: 11.75
A62: =A61-Q*qmikro*COS(RADIANS(gonia-C62*gonia/10))/s^2 -> -6.03718437 | B62: =B61-Q*qmikro*SIN(RADIANS(gonia-C62*gonia/10))/s^2 -> -1.731134761 | C62: 12
A63: =velosleftx(A61,B61,A62,B62,$E$1) -> -5.944465984 | B63: =veloslefty(A61,B61,A62,B62,$E$1) -> -1.693674102 | C63: 12.25
A64: =velosrightx(A61,B61,A62,B62,$E$1) -> -5.958383294 | B64: =velosrighty(A61,B61,A62,B62,$E$1) -> -1.792700909 | C64: 12.5
A65: =A62 -> -6.03718437 | B65: =B62 -> -1.731134761 | C65: 12.75
A66: =A65-Q*qmikro*COS(RADIANS(gonia-C66*gonia/10))/s^2 -> -6.52625817 | B66: =B65-Q*qmikro*SIN(RADIANS(gonia-C66*gonia/10))/s^2 -> -1.627178916 | C66: 13
A67: =velosleftx(A65,B65,A66,B66,$E$1) -> -6.431152519 | B67: =veloslefty(A65,B65,A66,B66,$E$1) -> -1.596277216 | C67: 13.25
A68: =velosrightx(A65,B65,A66,B66,$E$1) -> -6.451943688 | B68: =velosrighty(A65,B65,A66,B66,$E$1) -> -1.694091976 | C68: 13.5
A69: =A66 -> -6.52625817 | B69: =B66 -> -1.627178916 | C69: 13.75
A70: =A69-Q*qmikro*COS(RADIANS(gonia-C70*gonia/10))/s^2 -> -7.006889018 | B70: =B69-Q*qmikro*SIN(RADIANS(gonia-C70*gonia/10))/s^2 -> -1.489360238 | C70: 14
A71: =velosleftx(A69,B69,A70,B70,$E$1) -> -6.909859446 | B71: =veloslefty(A69,B69,A70,B70,$E$1) -> -1.465168048 | C71: 14.25
A72: =velosrightx(A69,B69,A70,B70,$E$1) -> -6.937423181 | B72: =velosrighty(A69,B69,A70,B70,$E$1) -> -1.561294218 | C72: 14.5
A73: =A70 -> -7.006889018 | B73: =B70 -> -1.489360238 | C73: 14.75
A74: =A73-Q*qmikro*COS(RADIANS(gonia-C74*gonia/10))/s^2 -> -7.476735329 | B74: =B73-Q*qmikro*SIN(RADIANS(gonia-C74*gonia/10))/s^2 -> -1.318350166 | C74: 15
A75: =velosleftx(A73,B73,A74,B74,$E$1) -> -7.378254553 | B75: =veloslefty(A73,B73,A74,B74,$E$1) -> -1.300985348 | C75: 15.25
A76: =velosrightx(A73,B73,A74,B74,$E$1) -> -7.412456568 | B76: =velosrighty(A73,B73,A74,B74,$E$1) -> -1.39495461 | C76: 15.5
A77: =A74 -> -7.476735329 | B77: =B74 -> -1.318350166 | C77: 15.75
A78: =A77-Q*qmikro*COS(RADIANS(gonia-C78*gonia/10))/s^2 -> -7.933508057 | B78: =B77-Q*qmikro*SIN(RADIANS(gonia-C78*gonia/10))/s^2 -> -1.114981844 | C78: 16
A79: =velosleftx(A77,B77,A78,B78,$E$1) -> -7.834055868 | B79: =veloslefty(A77,B77,A78,B78,$E$1) -> -1.104528998 | C79: 16.25
A80: =velosrightx(A77,B77,A78,B78,$E$1) -> -7.874729532 | B80: =velosrighty(A77,B77,A78,B78,$E$1) -> -1.195883544 | C80: 16.5
A81: =A78 -> -7.933508057 | B81: =B78 -> -1.114981844 | C81: 16.75
A82: =A81-Q*qmikro*COS(RADIANS(gonia-C82*gonia/10))/s^2 -> -8.374981854 | B82: =B81-Q*qmikro*SIN(RADIANS(gonia-C82*gonia/10))/s^2 -> -0.8802460631 | C82: 17
A83: =velosleftx(A81,B81,A82,B82,$E$1) -> -8.275042771 | B83: =veloslefty(A81,B81,A82,B82,$E$1) -> -0.8767561134 | C83: 17.25
A84: =velosrightx(A81,B81,A82,B82,$E$1) -> -8.321989927 | B84: =velosrighty(A81,B81,A82,B82,$E$1) -> -0.9650508727 | C84: =C83+0.25 -> 17.5
A85: =A82 -> -8.374981854 | B85: =B82 -> -0.8802460631 | C85: 17.75
A86: =A85-Q*qmikro*COS(RADIANS(gonia-C86*gonia/10))/s^2 -> -8.799005902 | B86: =B85-Q*qmikro*SIN(RADIANS(gonia-C86*gonia/10))/s^2 -> -0.615286431 | C86: 18
A87: =velosleftx(A85,B85,A86,B86,$E$1) -> -8.699066819 | B87: =veloslefty(A85,B85,A86,B86,$E$1) -> -0.6187763807 | C87: 18.25
A88: =velosrightx(A85,B85,A86,B86,$E$1) -> -8.752058746 | B88: =velosrighty(A85,B85,A86,B86,$E$1) -> -0.7035811903 | C88: 18.5
A89: =A86 -> -8.799005902 | B89: =B86 -> -0.615286431 | C89: 18.75
A90: =A89-Q*qmikro*COS(RADIANS(gonia-C90*gonia/10))/s^2 -> -9.203514399 | B90: =B89-Q*qmikro*SIN(RADIANS(gonia-C90*gonia/10))/s^2 -> -0.3213938048 | C90: 19
A91: =velosleftx(A89,B89,A90,B90,$E$1) -> -9.10406221 | B91: =veloslefty(A89,B89,A90,B90,$E$1) -> -0.3318466512 | C91: 19.25
A92: =velosrightx(A89,B89,A90,B90,$E$1) -> -9.162840735 | B92: =velosrighty(A89,B89,A90,B90,$E$1) -> -0.4127483506 | C92: 19.5 | E92: Συνισταμένη των διανυσμάτων
A93: =A90 -> -9.203514399 | B93: =B90 -> -0.3213938048 | C93: 19.75 | E93: 0 | F93: 0
A94: =A93-Q*qmikro*COS(RADIANS(gonia-C94*gonia/10))/s^2 -> -9.586536621 | B94: =B93-Q*qmikro*SIN(RADIANS(gonia-C94*gonia/10))/s^2 -> 0 | C94: 20 | E94: =A94 -> -9.586536621 | F94: =B94 -> 0
E95: =velosleftx(E93,F93,E94,F94,0.2) -> -9.41333154 | F95: =veloslefty(E93,F93,E94,F94,0.2) -> 0.1
E96: =velosrightx(E93,F93,E94,F94,0.2) -> -9.41333154 | F96: =velosrighty(E93,F93,E94,F117,0.2) -> -0.1
E97: =E94 -> -9.586536621 | F97: =F94 -> 0

Sheet Sheet3
